bitfinex-derivatives/quotes_SOLF0:USTF0_20260311
["timestamp","ask_amount","ask_price","bid_price","bid_amount"]
[1773224931892,11.08711884,85.059,85.023,10.584]
[1773224932686,11.08711884,85.059,85.029,10.584]
[1773224940294,11.08711884,85.059,85.028,10.584]
[1773224947394,11.08711884,85.059,85.02,2.83285946]
[1773224947589,10.96620571,85.069,85.02,2.83285946]
[1773224947788,10.96620571,85.069,85.03,2.83285946]
[1773224947989,10.96620571,85.069,85.043,10.582]
[1773224948890,21.56005941,85.079,85.043,10.582]
[1773224949091,10.578,85.076,85.043,10.582]
[1773224949394,10.98305941,85.074,85.043,10.582]
[1773224953701,10.97315573,85.085,85.05,2.8293025]
[1773224953896,10.97315573,85.085,85.021,11.84]
[1773224954302,10.97315573,85.085,85.04,2.8293025]
[1773224955303,10.97315573,85.085,85.054,10.58]
[1773224958104,10.97315573,85.085,85.053,10.581]
[1773224961107,10.97315573,85.085,85.059,10.58]
[1773224961405,10.94526681,85.095,85.059,10.58]
[1773224964602,10.94526681,85.095,85.065,10.579]
[1773224971308,10.95009767,85.109,85.07,2.8293025]
[1773224972005,10.95009767,85.109,85.077,10.578]
[1773224978213,2.8293025,85.1,85.04,2.8293025]
[1773224978414,10.974317,85.099,85.04,2.8293025]
[1773224979421,10.974317,85.087,85.051,10.581]
[1773224995627,10.95528558,85.097,85.05,2.8293025]
[1773224996418,10.95528558,85.097,85.062,10.579]
[1773224997018,10.95528558,85.097,85.067,10.579]
[1773224997219,10.96436669,85.109,85.07,2.8293025]
[1773224998231,10.95169566,85.12,85.07,2.8293025]
[1773224998424,10.95169566,85.12,85.071,11.84]
[1773224999529,10.95169566,85.12,85.083,10.577]
[1773225000223,21.52369566,85.12,85.083,10.577]
[1773225000428,10.98475575,85.119,85.083,10.577]
[1773225000727,10.98475575,85.119,85.094,10.575]
[1773225000935,10.98475575,85.129,85.094,10.575]
[1773225001126,10.98475575,85.129,85.09,2.8293025]
[1773225002226,10.98475575,85.129,85.101,10.575]
[1773225002832,11.03983103,85.143,85.101,10.575]
[1773225003030,11.03983103,85.141,85.101,10.575]
[1773225003232,11.03983103,85.139,85.101,10.575]
[1773225006532,2.8293025,85.13,85.08,2.8293025]
[1773225006734,11.10469023,85.109,85.048,11.84]
[1773225006937,11.10469023,85.109,85.05,2.8293025]
[1773225007132,11.10469023,85.109,85.06,2.8293025]
[1773225007435,11.10469023,85.109,85.05,2.8293025]
[1773225007836,11.10469023,85.103,85.067,10.579]
[1773225008527,11.03000054,85.099,85.06,10.58]
[1773225008728,11.03000054,85.089,85.047,11.84]
[1773225009536,11.03000054,85.088,85.047,11.84]
[1773225010339,11.03000054,85.088,85.055,10.58]
[1773225014437,11.03000054,85.088,85.048,10.581]
[1773225016146,11.03000054,85.088,85.054,10.58]
[1773225022045,11.03000054,85.088,85.061,10.58]
[1773225022248,10.95217609,85.099,85.05,2.82892514]
[1773225022643,10.95217609,85.099,85.047,11.84]
[1773225022842,10.95217609,85.099,85.067,10.579]
[1773225025551,10.95217609,85.099,85.015,29.14050943]
[1773225025552,10.95400609,85.121,85.07,2.82892514]
[1773225026356,10.95400609,85.121,85.087,10.576]
[1773225026552,10.95400609,85.121,85.07,2.82892514]
[1773225026751,10.95400609,85.121,85.08,2.82892514]
[1773225028045,10.95400609,85.121,85.088,10.576]
[1773225030354,2.82892514,85.12,85.08,10.577]
[1773225030560,10.97530129,85.109,85.067,11.84]
[1773225032255,10.97530129,85.109,85.075,10.578]
[1773225033260,10.97530129,85.109,85.081,10.577]
[1773225036067,10.93800711,85.121,85.087,10.576]
[1773225036457,10.94387402,85.119,85.06,2.82892514]
[1773225036763,10.94387402,85.109,85.06,2.82892514]
[1773225037264,10.94387402,85.109,85.078,10.577]
[1773225038863,10.94387402,85.109,85.06,2.82892514]
[1773225038864,13.78447211,85.12,85.07,2.82892514]
[1773225039066,10.95554697,85.12,85.07,2.82892514]
[1773225039264,10.95554697,85.12,85.087,10.576]
[1773225039459,10.95554697,85.129,85.08,2.82892514]
[1773225040468,10.95554697,85.129,85.096,10.575]
[1773225046273,10.95554697,85.129,85.089,10.576]
[1773225047377,10.97455341,85.127,85.089,10.576]
[1773225048776,10.98077356,85.117,85.07,14.66892514]
[1773225049174,10.98077356,85.117,85.07,2.82892514]
[1773225049577,10.98077356,85.117,85.093,10.576]
[1773225055374,10.96067241,85.139,85.099,10.575]
[1773225056378,10.95684528,85.138,85.099,10.575]
[1773225057472,10.95684528,85.136,85.099,10.575]
[1773225060184,10.57,85.137,85.104,10.574]
[1773225060483,10.9620111,85.139,85.08,14.66892514]
[1773225061382,10.9620111,85.138,85.097,10.575]
[1773225062190,11.06594793,85.129,85.09,10.576]
[1773225062483,11.06594793,85.109,85.05,2.82892514]
[1773225062684,11.06594793,85.099,85.05,2.82892514]
[1773225063683,11.06594793,85.099,85.074,10.578]
[1773225063885,13.89487307,85.11,85.074,10.578]
[1773225064084,11.06594793,85.109,85.074,10.578]
[1773225064280,11.08990323,85.108,85.074,10.578]
[1773225069089,11.08990323,85.108,85.079,10.577]
[1773225079095,11.08990323,85.108,85.06,2.82689303]
[1773225079297,2.82689303,85.13,85.08,2.82689303]
[1773225079497,2.82689303,85.14,85.08,2.82689303]
[1773225079799,9.23745343,85.139,85.08,2.82689303]
[1773225080096,2.82689303,85.14,85.08,2.82689303]
[1773225080301,9.23717556,85.139,85.08,2.82689303]
[1773225080600,10.57,85.135,85.101,10.575]
[1773225081001,2.82689303,85.14,85.08,2.82689303]
[1773225081202,2.82689303,85.14,85.068,11.84]
[1773225081203,5.56477187,85.138,85.09,2.82689303]
[1773225081701,5.56477187,85.135,85.097,10.575]
[1773225084806,5.53427195,85.119,85.068,11.84]
[1773225085004,5.53427195,85.119,85.07,2.82689303]
[1773225085304,5.53427195,85.119,85.06,2.82689303]
[1773225086306,11.84,85.156,85.072,10.578]
[1773225086307,5.53001491,85.109,85.072,10.578]
[1773225086612,35.32,85.142,85.05,11.84]
[1773225086613,5.53001491,85.099,85.05,11.84]
[1773225086811,5.53001491,85.099,85.05,14.66689303]
[1773225088314,5.53001491,85.099,85.07,10.578]
[1773225089810,5.53001491,85.099,85.05,14.66689303]
[1773225089811,2.82689303,85.12,85.06,2.82689303]
[1773225090018,5.52342978,85.119,85.06,2.82689303]
[1773225090218,5.52342978,85.119,85.07,2.82689303]
[1773225090418,5.52342978,85.119,85.06,2.82689303]
[1773225091316,5.52342978,85.119,85.079,10.577]
[1773225091516,5.52342978,85.119,85.06,2.82689303]
[1773225091716,5.52342978,85.119,85.039,21.165]
[1773225091717,5.52342978,85.119,85.07,2.82689303]
[1773225091911,5.52342978,85.119,85.089,10.576]
[1773225092113,5.52845137,85.131,85.08,2.82689303]
[1773225092312,5.52845137,85.131,85.09,2.82689303]
[1773225092518,5.52845137,85.131,85.108,10.574]
[1773225098124,5.52845137,85.131,85.101,10.575]
[1773225100629,5.52845137,85.131,85.09,2.82689303]
[1773225101026,5.5077124,85.149,85.108,10.574]
[1773225101220,5.5077124,85.149,85.074,21.156]
[1773225101221,5.5077124,85.149,85.1,2.82689303]
[1773225102325,5.5077124,85.149,85.114,10.573]
[1773225102925,2.82689303,85.15,85.094,11.84]
[1773225102926,5.52066305,85.147,85.094,11.84]
[1773225103424,5.52066305,85.139,85.094,11.84]
[1773225104329,5.52066305,85.139,85.108,10.574]
[1773225109735,5.50238845,85.138,85.094,11.84]
[1773225110435,5.52508312,85.149,85.1,2.82689303]
[1773225111040,5.52508312,85.149,85.114,10.573]
[1773225111441,5.52508312,85.149,85.1,2.82689303]
[1773225112433,5.53103477,85.179,85.11,2.82689303]
[1773225112742,5.53103477,85.169,85.11,2.82689303]
[1773225112941,10.91704292,85.181,85.11,2.82689303]
[1773225112942,2.82689303,85.16,85.11,2.82689303]
[1773225113143,5.53103477,85.159,85.11,2.82689303]
[1773225113541,5.53103477,85.158,85.119,10.572]
[1773225114338,5.57843456,85.156,85.119,10.572]
[1773225115347,5.57843456,85.154,85.119,10.572]
[1773225116546,5.58725506,85.165,85.12,2.82689303]
[1773225117449,5.58725506,85.165,85.125,10.572]
[1773225117646,5.58724548,85.176,85.12,2.82689303]
[1773225117949,5.58724548,85.176,85.13,2.82689303]
[1773225118151,5.5799651,85.188,85.14,2.82689303]
[1773225119349,5.5799651,85.187,85.15,10.568]
[1773225120248,5.57396219,85.185,85.143,10.569]
[1773225120457,35.25,85.212,85.12,14.66689303]
[1773225120458,5.57396219,85.169,85.12,14.66689303]
[1773225120944,5.57396219,85.169,85.135,10.57]
[1773225122043,5.57396219,85.165,85.128,10.571]
[1773225122840,5.57736639,85.179,85.13,2.82689303]
[1773225123448,5.57736639,85.177,85.12,2.82689303]
[1773225124049,5.57736639,85.177,85.13,2.82689303]
[1773225125951,5.57736639,85.177,84.957,94.54326107]
[1773225125952,9.21077434,85.211,85.16,2.82689303]
[1773225126255,5.59269164,85.217,85.17,2.82689303]
[1773225127055,5.61364349,85.216,85.17,2.82689303]
[1773225127257,5.61364349,85.199,85.15,2.82689303]
[1773225128460,5.61364349,85.199,85.162,10.567]
[1773225130451,5.61364349,85.199,85.169,10.566]
[1773225130750,5.63403926,85.212,85.17,2.82689303]
[1773225131453,5.63403926,85.209,85.16,2.82689303]
[1773225132151,5.63403926,85.202,85.162,10.567]
[1773225133559,5.6248749,85.197,85.16,2.82689303]
[1773225133755,5.6248749,85.197,85.142,11.84]
[1773225133756,5.6248749,85.197,85.15,2.82689303]
[1773225133955,5.6248749,85.197,85.16,2.82689303]
[1773225134258,2.82689303,85.23,85.171,2.53702678]
[1773225134448,2.82689303,85.22,85.171,2.53702678]
[1773225134848,10.56,85.222,85.175,13.06175048]
[1773225135054,10.56,85.222,85.18,2.82689303]
[1773225135859,10.56,85.222,85.181,10.565]
[1773225136460,3.78650654,85.221,85.183,10.564]
[1773225136660,3.78650654,85.221,85.183,13.06384374]
[1773225137161,3.78650654,85.221,85.183,10.564]
[1773225137957,3.78650654,85.221,85.18,2.81948007]
[1773225138767,3.78650654,85.221,85.181,10.565]
[1773225140666,3.78650654,85.221,85.184,10.564]
[1773225140863,3.78650654,85.221,85.182,2.50174687]
[1773225142366,3.78650654,85.221,85.19,10.564]
[1773225142561,4.0541823,85.234,85.19,2.81948007]
[1773225143466,4.0541823,85.234,85.195,10.563]
[1773225144569,4.0541823,85.234,85.198,10.563]
[1773225145057,4.0541823,85.254,85.212,2.52100026]
[1773225145665,4.0541823,85.254,85.221,10.56]
[1773225146460,4.0541823,85.269,85.226,10.559]
[1773225147366,4.0541823,85.267,85.226,10.559]
[1773225149468,10.554,85.266,85.226,10.559]
[1773225150267,14.6081823,85.266,85.226,10.559]
[1773225150968,4.0541823,85.265,85.226,10.559]
[1773225153782,2.81948007,85.26,85.219,10.56]
[1773225153978,4.0541823,85.259,85.219,10.56]
[1773225155068,4.0541823,85.259,85.219,13.05024378]
[1773225155274,4.0541823,85.259,85.223,10.559]
[1773225155575,4.0541823,85.249,85.194,2.49024378]
[1773225155776,4.0541823,85.239,85.2,2.81948007]
[1773225156076,4.0541823,85.267,85.221,2.49024378]
[1773225157078,4.0541823,85.259,85.221,2.49024378]
[1773225158475,4.0541823,85.257,85.21,2.81948007]
[1773225158782,4.0541823,85.257,85.21,2.39559977]
[1773225159080,4.0541823,85.251,85.21,2.39559977]
[1773225159273,4.0541823,85.239,85.184,2.39559977]
[1773225159478,4.0541823,85.227,85.184,2.39559977]
[1773225160180,4.0541823,85.227,85.185,10.564]
[1773225162673,4.0541823,85.227,85.188,13.07237943]
[1773225164878,4.0541823,85.227,85.126,35.25]
[1773225164879,4.0541823,85.209,85.134,2.55607504]
[1773225165183,4.0541823,85.229,85.171,2.55607504]
[1773225165778,4.0541823,85.227,85.19,10.563]
[1773225165984,4.0541823,85.227,85.171,2.55607504]
[1773225166181,2.81948007,85.22,85.171,2.55607504]
[1773225167187,4.0541823,85.219,85.176,10.565]
[1773225167785,4.0541823,85.219,85.176,13.07250862]
[1773225168285,4.0541823,85.219,85.182,10.565]
[1773225172780,4.0541823,85.219,85.188,10.564]
[1773225172980,4.0541823,85.219,85.167,11.82]
[1773225172981,9.13055392,85.25,85.189,2.50980462]
[1773225173185,2.81948007,85.24,85.191,2.50980462]
[1773225173587,14.31677403,85.238,85.193,13.07280462]
[1773225173885,14.31677403,85.238,85.194,2.50980462]
[1773225174284,14.31677403,85.238,85.197,10.563]
[1773225174996,3.75877403,85.233,85.194,2.50980462]
[1773225175190,2.81948007,85.23,85.194,2.50980462]
[1773225175385,6.5782541,85.23,85.194,2.50980462]
[1773225175691,3.75877403,85.229,85.194,2.50980462]
[1773225176790,3.7754525,85.239,85.197,13.12858774]
[1773225178092,3.7754525,85.239,85.2,13.12758774]
[1773225179894,10.558,85.238,85.2,13.12758774]
[1773225180596,3.7754525,85.237,85.2,13.12758774]
[1773225182792,10.558,85.235,85.2,13.12758774]
[1773225183091,14.3334525,85.235,85.2,13.12758774]
[1773225183492,3.7754525,85.231,85.192,10.563]
[1773225186699,3.7754525,85.231,85.192,13.17589252]
[1773225187700,3.7754525,85.231,85.194,10.563]
[1773225187898,3.7754525,85.231,85.193,2.61289252]
[1773225189406,3.7754525,85.231,85.199,10.562]
[1773225190405,3.7754525,85.231,85.2,2.53574948]
[1773225193299,35.25,85.262,85.166,21.133]
[1773225193300,3.7754525,85.229,85.178,14.41980582]
[1773225193504,3.7754525,85.229,85.181,2.59980582]
[1773225193704,6.59493257,85.24,85.191,2.59980582]
[1773225193898,3.7754525,85.239,85.191,2.59980582]
[1773225195299,3.7754525,85.229,85.18,2.66011907]
[1773225195903,2.81948007,85.23,85.18,2.66011907]
[1773225195904,3.7754525,85.222,85.184,10.564]
[1773225197007,3.7754525,85.216,85.176,10.565]
[1773225198006,3.7754525,85.216,85.182,10.565]
[1773225198404,14.3354525,85.216,85.178,2.64130673]
[1773225200105,10.561,85.212,85.178,2.64130673]
[1773225200311,3.91515206,85.209,85.169,13.25281063]
[1773225200612,3.91515206,85.209,85.169,10.566]
[1773225201002,3.91515206,85.207,85.169,10.566]
[1773225201413,3.91515206,85.207,85.162,10.567]
[1773225202508,3.91515206,85.203,85.162,10.567]
[1773225202909,3.91515206,85.201,85.162,10.567]
[1773225203111,3.91515206,85.199,85.162,10.567]
[1773225204409,3.91515206,85.198,85.162,10.567]
[1773225206312,3.91515206,85.192,85.15,10.568]
[1773225206706,3.91515206,85.192,85.15,13.22812178]
[1773225206910,10.564,85.19,85.154,10.568]
[1773225208521,10.564,85.19,85.151,2.66012178]
[1773225209417,10.564,85.19,85.153,10.568]
[1773225210422,10.564,85.19,85.153,13.19198413]
[1773225211126,10.564,85.19,85.154,2.62398413]
[1773225211320,3.91515206,85.192,85.155,10.568]
[1773225211521,3.91515206,85.203,85.155,2.62398413]
[1773225211726,3.91515206,85.203,85.161,2.62398413]
[1773225212126,3.91515206,85.203,85.167,10.566]
[1773225213524,6.73523424,85.2,85.161,2.62398413]
[1773225214426,6.73523424,85.2,85.164,10.567]
[1773225215226,3.91515206,85.2,85.164,10.567]
[1773225217732,3.91515206,85.2,85.168,10.566]
[1773225218023,3.91515206,85.2,85.169,2.72869631]
[1773225218228,10.562,85.207,85.169,2.72869631]
[1773225218420,10.562,85.207,85.171,2.75837326]
[1773225218820,35.25,85.232,85.171,2.75837326]
[1773225218821,10.561,85.214,85.171,2.75837326]
[1773225219328,10.561,85.209,85.174,2.75837326]
[1773225220532,10.561,85.209,85.175,10.565]
[1773225222932,3.91515206,85.215,85.175,10.565]
[1773225223124,3.91515206,85.215,85.174,2.75837326]
[1773225223125,3.91515206,85.215,85.182,10.564]
[1773225224338,14.47515206,85.215,85.182,10.564]
[1773225225839,14.47515206,85.215,85.176,10.565]
[1773225226832,14.47515206,85.215,85.176,13.23773872]
[1773225227234,2.82008218,85.22,85.069,544.73910812]
[1773225227235,2.82008218,85.21,85.161,2.67273872]
[1773225227434,3.91515206,85.209,85.161,2.67273872]
[1773225228336,10.562,85.204,85.163,10.567]
[1773225228534,3.91515206,85.203,85.163,10.567]
[1773225229428,3.91515206,85.203,85.161,2.67273872]
[1773225231929,3.91515206,85.203,85.11,29.17091892]
[1773225231930,3.71579141,85.189,85.131,2.6826067]
[1773225233233,3.71579141,85.187,85.149,2.69306991]
[1773225233836,3.71579141,85.187,85.151,2.69306991]
[1773225234934,3.71579141,85.187,85.14,2.7616671]
[1773225236333,2.82008218,85.19,85.14,2.7616671]
[1773225236334,3.92054779,85.184,85.142,10.57]
[1773225237437,3.92054779,85.182,85.142,10.57]
[1773225237834,2.82008218,85.18,85.142,10.57]
[1773225238039,3.92054779,85.179,85.142,10.57]
[1773225238240,3.92054779,85.179,85.135,10.57]
[1773225239539,10.565,85.175,85.135,13.31260117]
[1773225240038,10.565,85.175,85.137,10.57]
[1773225240433,10.565,85.175,85.137,13.30831578]
[1773225240631,10.565,85.175,85.139,10.57]
[1773225241035,6.74062997,85.16,85.113,2.73831578]
[1773225241236,3.92054779,85.159,85.121,10.572]
[1773225242134,3.92054779,85.149,85.115,10.573]
[1773225242639,3.92054779,85.166,85.122,2.61683551]
[1773225242939,3.92054779,85.179,85.131,2.61683551]
[1773225243343,3.92054779,85.179,85.139,2.61683551]
[1773225244338,14.48554779,85.179,85.139,2.61683551]
[1773225244632,3.92054779,85.179,85.142,13.22276235]
[1773225244836,3.92054779,85.189,85.143,2.65276235]
[1773225246445,10.564,85.186,85.147,10.569]
[1773225246643,14.48454779,85.186,85.147,10.569]
[1773225247346,14.48454779,85.186,85.147,13.19807706]
[1773225248242,3.92054779,85.182,85.14,13.19292299]
[1773225249343,10.565,85.179,85.14,13.19292299]
[1773225250046,14.48554779,85.179,85.14,13.19292299]
[1773225251046,14.48554779,85.179,85.14,16.01300517]
[1773225252550,3.92054779,85.179,85.144,2.61224059]
[1773225253451,3.92054779,85.179,85.146,10.569]
[1773225255252,3.92054779,85.179,85.139,10.57]
[1773225256343,10.565,85.178,85.139,10.57]
[1773225257145,14.48454779,85.186,85.142,2.58276178]
[1773225257453,2.82008218,85.2,85.142,2.58276178]
[1773225257454,3.92054779,85.185,85.142,2.58276178]
[1773225258049,14.48554779,85.182,85.142,13.15176178]
[1773225260154,3.71519605,85.177,85.142,10.569]
[1773225260360,3.71519605,85.177,85.121,2.61318039]
[1773225260556,3.71519605,85.169,85.121,2.61318039]
[1773225260857,3.71519605,85.154,85.115,10.573]
[1773225261752,3.71519605,85.154,85.115,13.18618039]
[1773225261951,3.71519605,85.154,85.118,2.61318039]
[1773225263454,3.71519605,85.154,85.119,10.572]
[1773225264959,3.71519605,85.166,85.126,2.62143952]
[1773225265156,9.16100417,85.18,85.109,11.84]
[1773225265157,3.71519605,85.177,85.131,2.62143952]
[1773225266359,10.566,85.17,85.132,10.571]
[1773225266861,3.71519605,85.169,85.132,10.571]
[1773225268158,3.71519605,85.167,85.121,11.84]
[1773225268554,3.71519605,85.167,85.117,2.63376609]
[1773225269453,10.567,85.164,85.119,2.62249619]
[1773225270164,10.567,85.164,85.121,2.62249619]
[1773225270461,10.567,85.164,85.123,2.61281417]
[1773225275062,14.28219605,85.164,85.123,2.61281417]
[1773225276465,3.71519605,85.161,85.123,2.61281417]
[1773225277367,14.28319605,85.158,85.123,2.61281417]
[1773225277569,3.71519605,85.157,85.123,2.61281417]
[1773225277869,3.71519605,85.157,85.122,10.572]
[1773225278269,3.71519605,85.155,85.112,2.63807784]
[1773225281372,3.71519605,85.155,85.11,2.82458353]
[1773225281373,3.71519605,85.155,85.116,2.58141596]
[1773225282469,3.71519605,85.155,85.118,10.573]
[1773225283273,3.71519605,85.153,85.118,10.573]
[1773225286477,3.71519605,85.153,85.122,10.572]
[1773225286678,3.71519605,85.153,85.109,11.84]
[1773225286679,3.71519605,85.179,85.131,2.61334154]
[1773225287371,10.566,85.168,85.133,10.571]
[1773225291677,14.63577241,85.168,85.133,10.571]
[1773225292579,4.06977241,85.168,85.141,10.57]
[1773225292983,4.06977241,85.168,85.131,2.61334154]
[1773225294385,4.06977241,85.168,85.135,10.57]
[1773225298686,4.06977241,85.168,85.131,2.61334154]
[1773225300190,4.06977241,85.168,85.132,2.831183]
[1773225300591,14.61513111,85.178,85.138,10.57]
[1773225300792,14.61513111,85.178,85.139,2.83188991]
[1773225300987,4.05013111,85.177,85.139,2.83188991]
[1773225301684,14.61513111,85.175,85.139,2.83188991]
[1773225301881,4.05013111,85.174,85.139,2.83188991]
[1773225302087,10.567,85.166,85.13,2.82458353]
[1773225302292,14.61713111,85.166,85.13,5.62308177]
[1773225303091,4.05013111,85.166,85.132,10.571]
[1773225303490,4.05013111,85.166,85.132,13.36949824]
[1773225303793,4.05013111,85.166,85.137,10.57]
[1773225303997,10.566,85.172,85.138,2.79849824]
[1773225304192,4.05013111,85.176,85.138,2.79849824]
[1773225304495,4.05013111,85.176,85.141,2.78985497]
[1773225304794,4.05013111,85.189,85.151,2.78985497]
[1773225304995,9.20585698,85.188,85.151,2.78985497]
[1773225305196,9.20585698,85.187,85.151,2.78985497]
[1773225305390,9.20585698,85.186,85.151,2.78985497]
[1773225305586,9.20585698,85.185,85.151,2.78985497]
[1773225305790,9.20585698,85.184,85.151,2.78985497]
[1773225306087,10.564,85.186,85.151,2.78985497]
[1773225306290,9.2066167,85.185,85.152,2.78640863]
[1773225306594,4.05013111,85.2,85.161,2.78640863]
[1773225306797,2.82458353,85.22,85.161,2.78640863]
[1773225306989,4.05013111,85.218,85.161,2.78640863]
[1773225307192,4.05013111,85.216,85.171,2.78640863]
[1773225307494,9.20996031,85.215,85.171,2.78640863]
[1773225307686,9.20996031,85.214,85.171,2.78640863]
[1773225307890,9.20996031,85.213,85.171,2.78640863]
[1773225308091,4.05013111,85.216,85.171,2.78640863]
[1773225308293,9.19818673,85.215,85.171,2.78640863]
[1773225308596,10.561,85.215,85.173,2.77875621]
[1773225308899,9.20172132,85.214,85.173,2.77875621]
[1773225309094,10.561,85.211,85.173,2.77875621]
[1773225309395,14.61113111,85.211,85.173,2.77875621]
[1773225310896,4.05013111,85.211,85.175,2.75031172]
[1773225311697,4.05013111,85.211,85.17,2.82458353]
[1773225311698,10.56,85.218,85.178,2.75031172]
[1773225311895,4.05013111,85.217,85.178,2.75031172]
[1773225312592,4.05013111,85.215,85.178,2.75031172]
[1773225312989,4.05013111,85.215,85.17,2.82458353]
[1773225313790,4.05013111,85.201,85.17,2.82458353]
[1773225313995,4.05013111,85.201,85.16,2.82458353]
[1773225314194,4.05013111,85.201,85.161,2.74235624]
[1773225314396,4.05013111,85.201,85.167,10.566]
[1773225314697,4.05013111,85.201,85.167,13.30835624]
[1773225314897,4.05013111,85.201,85.168,2.74235624]
[1773225315092,10.561,85.21,85.168,2.74235624]
[1773225315293,10.561,85.21,85.17,16.13293977]
[1773225315696,14.61113111,85.21,85.17,16.13293977]
[1773225317800,4.05013111,85.209,85.17,16.13293977]
[1773225318198,4.05013111,85.209,85.174,10.565]
[1773225318497,4.05013111,85.209,85.175,2.77387422]
[1773225319501,4.05013111,85.209,85.176,10.565]
[1773225319701,4.05013111,85.209,85.176,13.33141803]
[1773225322106,4.05013111,85.209,85.176,2.76641803]
[1773225324107,4.05013111,85.209,85.176,13.33141803]
[1773225324296,14.50572084,85.219,85.18,2.82031204]
[1773225324496,14.50572084,85.219,85.18,5.5418096]
[1773225324907,10.56,85.217,85.18,5.5418096]
[1773225325117,3.94572084,85.218,85.181,2.72149756]
[1773225325500,3.94572084,85.218,85.184,10.564]
[1773225326211,10.56,85.217,85.181,2.72149756]
[1773225327612,14.50572084,85.217,85.181,2.72149756]
[1773225327815,3.94572084,85.216,85.181,2.72149756]
[1773225328512,3.94572084,85.213,85.181,2.72149756]
[1773225332016,3.94572084,85.213,85.177,10.565]
[1773225335311,10.561,85.21,85.171,2.78831886]
[1773225335518,3.94572084,85.209,85.171,2.78831886]
[1773225335914,3.94572084,85.209,85.173,10.566]
[1773225336914,3.94572084,85.209,85.174,2.79052574]
[1773225338112,10.562,85.205,85.174,2.79052574]
[1773225339821,3.94572084,85.204,85.17,2.82031204]
[1773225340214,3.94572084,85.204,85.172,2.78574911]
[1773225341416,3.94572084,85.204,85.174,10.566]
[1773225342415,3.94572084,85.204,85.174,13.2899516]
[1773225342717,3.94572084,85.204,85.175,2.7239516]
[1773225344819,3.94572084,85.209,85.175,2.7239516]
[1773225345016,3.94572084,85.209,85.174,10.566]
[1773225346221,3.94572084,85.206,85.17,2.82031204]
[1773225346421,3.94572084,85.206,85.168,10.566]
[1773225346618,3.94572084,85.206,85.165,2.72209856]
[1773225346817,3.94572084,85.206,85.112,29.17091892]
[1773225346818,3.94572084,85.201,85.153,2.68736749]
[1773225347121,35.25,85.23,85.153,2.68736749]
[1773225347122,3.94572084,85.199,85.153,2.68736749]
[1773225348324,14.50972084,85.187,85.153,2.68736749]
[1773225348719,3.94572084,85.186,85.153,2.68736749]
[1773225352422,3.94572084,85.186,85.154,10.568]
[1773225352627,14.35805171,85.196,85.153,2.68736749]
[1773225353126,3.79505171,85.195,85.153,2.68736749]
[1773225353324,3.79505171,85.195,85.16,10.567]
[1773225353921,10.563,85.194,85.153,10.568]
[1773225354118,3.79505171,85.193,85.154,2.73142171]
[1773225355330,10.563,85.192,85.154,2.73142171]
[1773225355527,3.79505171,85.191,85.154,2.73142171]
[1773225355728,3.79505171,85.191,85.153,10.568]
[1773225356426,3.79505171,85.183,85.144,13.28759846]
[1773225357330,3.79505171,85.183,85.145,2.74615026]
[1773225357927,2.82031204,85.19,85.145,2.74615026]
[1773225357928,3.9274763,85.18,85.145,2.74615026]
[1773225358124,3.9274763,85.18,85.137,10.57]
[1773225358329,3.9274763,85.18,85.138,2.74613877]
[1773225359330,10.565,85.179,85.14,10.57]
[1773225359635,3.9274763,85.178,85.141,2.74613877]
[1773225361336,3.9274763,85.178,85.146,10.569]
[1773225362534,3.9274763,85.178,85.146,2.73114374]
[1773225363441,3.9274763,85.178,85.146,13.30014374]
[1773225365535,3.9274763,85.178,85.147,2.78753195]
[1773225366639,3.9274763,85.178,85.149,13.33615524]
[1773225366843,3.9274763,85.189,85.151,2.76715524]
[1773225368342,3.9274763,85.189,85.156,10.568]
[1773225368846,3.9274763,85.189,85.156,13.34752111]
[1773225370142,3.9274763,85.189,85.157,2.77952111]
[1773225370650,3.9274763,85.199,85.162,2.79711938]
[1773225374154,3.9274763,85.199,85.164,13.34455016]
[1773225374451,3.9274763,85.199,85.164,2.77755016]
[1773225375143,3.9274763,85.209,85.172,10.566]
[1773225375350,3.9274763,85.209,85.17,2.82031204]
[1773225375351,3.9274763,85.209,85.173,2.76327326]
[1773225376352,3.9274763,85.209,85.176,10.565]
[1773225376653,3.9274763,85.209,85.176,13.29467812]
[1773225378647,3.9274763,85.209,85.176,2.72967812]
[1773225380457,3.9274763,85.209,85.178,10.565]